Workbook

Sheet 专硕
A1: 江苏科技大学 材料科学与工程 学院 2025年硕士研究生复试录取排序表
A2: 学院（章）： 材料科学与工程 专业代码及专业名称：085600 材料与化工
A3: 生源类别（一志愿或调剂） | B3: 复试专业 代码 | C3: 复试专业 名称 | D3: 姓名 | E3: 考生编号 | F3: A 初试总成绩（含加分） | G3: B 专业课考试（考核）成绩 | H3: C 口语听力总成绩 | I3: D 专业知识面试成绩 | J3: （B+C+D+E) 复试总成绩 （保留至小数点后1位） | K3: 综合成绩 （保留至小数点后2位小数） 综合成绩=初试成绩*70%+复试总成绩*30% | L3: 综合成绩排名 | M3: 是否拟录取 | N3: 备注
A4: 调剂 | B4: 085600 | C4: 材料与化工 | D4: 曹睿城 | E4: 102135000008092 | F4: 347 | G4: 143 | H4: 46 | I4: 96 | J4: =ROUND(SUM(G4:I4),1) -> 285.0 | K4: =ROUND(F4*0.7+J4*0.3,2) -> 328.40 | L4: 1 | M4: 是
A5: 调剂 | B5: 085600 | C5: 材料与化工 | D5: 汤韫焘 | E5: 102885500007578 | F5: 331 | G5: 145 | H5: 45 | I5: 95 | J5: =ROUND(SUM(G5:I5),1) -> 285.0 | K5: =ROUND(F5*0.7+J5*0.3,2) -> 317.20 | L5: 2 | M5: 是
A6: 调剂 | B6: 085600 | C6: 材料与化工 | D6: 靳韩羽 | E6: 102885500007578 | F6: 286 | G6: 135 | H6: 40 | I6: 85 | J6: =ROUND(SUM(G6:I6),1) -> 260.0 | K6: =ROUND(F5*0.7+J6*0.3,2) -> 309.70 | L6: 3 | M6: 是
A7: 调剂 | B7: 085600 | C7: 材料与化工 | D7: 刘畅 | E7: 101455000007419 | F7: 308 | G7: 140 | H7: 45 | I7: 92 | J7: =ROUND(SUM(G7:I7),1) -> 277.0 | K7: =ROUND(F7*0.7+J7*0.3,2) -> 298.70 | L7: 4 | M7: 是
A8: 调剂 | B8: 085600 | C8: 材料与化工 | D8: 刘晨 | E8: 104975400339101 | F8: 311 | G8: 135 | H8: 45 | I8: 90 | J8: =G8+H8+I8 -> 270.0 | K8: =F8*0.7+J8*0.3 -> 298.70 | L8: 5 | M8: 是
A9: 调剂 | B9: 085600 | C9: 材料与化工 | D9: 陆盛楠 | E9: 102465520415331 | F9: 317 | G9: 130 | H9: 40 | I9: 85 | J9: =ROUND(SUM(G9:I9),1) -> 255.0 | K9: =ROUND(F9*0.7+J9*0.3,2) -> 298.40 | L9: 6 | M9: 是
A10: 调剂 | B10: 085600 | C10: 材料与化工 | D10: 张子贤 | E10: 143255140700001 | F10: 309 | G10: 132 | H10: 42 | I10: 88 | J10: =G10+H10+I10 -> 262.0 | K10: =F10*0.7+J10*0.3 -> 294.90 | L10: 7 | M10: 是
A11: 调剂 | B11: 085600 | C11: 材料与化工 | D11: 黄光杰 | E11: 106155085600922 | F11: 313 | G11: 125 | H11: 40 | I11: 87 | J11: =G11+H11+I11 -> 252.0 | K11: =F11*0.7+J11*0.3 -> 294.70 | L11: 8 | M11: 是
A12: 调剂 | B12: 085600 | C12: 材料与化工 | D12: 王子骏 | E12: 102135000007948 | F12: 309 | G12: 129.8 | H12: 43.7 | I12: 86.2 | J12: =SUM(G12:I12) -> 259.7 | K12: =ROUND(F12*0.7+J12*0.3,2) -> 294.21 | L12: 9 | M12: 是
A13: 调剂 | B13: 085600 | C13: 材料与化工 | D13: 樊恩洋 | E13: 102135000008437 | F13: 312 | G13: 120 | H13: 40 | I13: 90 | J13: =G13+H13+I13 -> 250.0 | K13: =F13*0.7+J13*0.3 -> 293.40 | L13: 10 | M13: 是
A14: 调剂 | B14: 085600 | C14: 材料与化工 | D14: 张梦缘 | E14: 103595210009701 | F14: 306 | G14: 130 | H14: 40 | I14: 90 | J14: =ROUND(SUM(G14:I14),1) -> 260.0 | K14: =ROUND(F14*0.7+J14*0.3,2) -> 292.20 | L14: 11 | M14: 是 | N14: 非全
A15: 调剂 | B15: 085600 | C15: 材料与化工 | D15: 卢续政 | E15: 101455000001935 | F15: 294 | G15: 143.9 | H15: 48.5 | I15: 95.2 | J15: =SUM(G15:I15) -> 287.6 | K15: =ROUND(F15*0.7+J15*0.3,2) -> 292.08 | L15: 12 | M15: 是
A16: 调剂 | B16: 085600 | C16: 材料与化工 | D16: 武宇航 | E16: 101455000002232 | F16: 311 | G16: 125 | H16: 40 | I16: 80 | J16: =G16+H16+I16 -> 245.0 | K16: =F16*0.7+J16*0.3 -> 291.20 | L16: 13 | M16: 是
A17: 调剂 | B17: 085600 | C17: 材料与化工 | D17: 亓贺彬 | E17: 102875210611969 | F17: 303 | G17: 140 | H17: 40 | I17: 80 | J17: 260.0 | K17: 290.10 | L17: 14 | M17: 是
A18: 调剂 | B18: 085600 | C18: 材料与化工 | D18: 王振阳 | E18: 106135085600021 | F18: 294 | G18: 140 | H18: 50 | I18: 90 | J18: 280.0 | K18: 289.80 | L18: 15 | M18: 是
A19: 调剂 | B19: 085600 | C19: 材料与化工 | D19: 李佳美 | E19: 102875210604634 | F19: 296 | G19: 135 | H19: 45 | I19: 90 | J19: 270.0 | K19: 288.20 | L19: 16 | M19: 是
A20: 调剂 | B20: 085600 | C20: 材料与化工 | D20: 李卓宸 | E20: 106985142208613 | F20: 296 | G20: 140 | H20: 50 | I20: 80 | J20: 270.0 | K20: 288.20 | L20: 17 | M20: 是
A21: 调剂 | B21: 085600 | C21: 材料与化工 | D21: 张雨 | E21: 102875210601736 | F21: 301 | G21: 120 | H21: 40 | I21: 90 | J21: 250.0 | K21: 285.70 | L21: 18 | M21: 是
A22: 调剂 | B22: 085600 | C22: 材料与化工 | D22: 杨骏鹏 | E22: 104975400339103 | F22: 286 | G22: 141.7 | H22: 47.5 | I22: 94.1 | J22: =SUM(G22:I22) -> 283.3 | K22: =ROUND(F22*0.7+J22*0.3,2) -> 285.19 | L22: 19 | M22: 是
A23: 调剂 | B23: 085600 | C23: 材料与化工 | D23: 王文宣 | E23: 101455000001426 | F23: 302 | G23: 135 | H23: 30 | I23: 80 | J23: =G23+H23+I23 -> 245.0 | K23: =F23*0.7+J23*0.3 -> 284.90 | L23: 20 | M23: 是
A24: 调剂 | B24: 085600 | C24: 材料与化工 | D24: 尹千禾 | E24: 105325370108985 | F24: 292 | G24: 138 | H24: 40 | I24: 90 | J24: =G24+H24+I24 -> 268.0 | K24: =F24*0.7+J24*0.3 -> 284.80 | L24: 21 | M24: 是
A25: 调剂 | B25: 085600 | C25: 材料与化工 | D25: 汪长委 | E25: 102915210301143 | F25: 312 | G25: 100 | H25: 40 | I25: 80 | J25: =G25+H25+I25 -> 220.0 | K25: =F25*0.7+J25*0.3 -> 284.40 | L25: 22 | M25: 是
A26: 调剂 | B26: 085600 | C26: 材料与化工 | D26: 周豪 | E26: 102855210014017 | F26: 296 | G26: 130 | H26: 40 | I26: 85 | J26: =G26+H26+I26 -> 255.0 | K26: =F26*0.7+J26*0.3 -> 283.70 | L26: 23 | M26: 是
A27: 调剂 | B27: 085600 | C27: 材料与化工 | D27: 杨宣 | E27: 100085210010374 | F27: 285 | G27: 139.6 | H27: 46.8 | I27: 92.9 | J27: =SUM(G27:I27) -> 279.3 | K27: =ROUND(F27*0.7+J27*0.3,2) -> 283.29 | L27: 24 | M27: 是
A28: 调剂 | B28: 085600 | C28: 材料与化工 | D28: 李苗 | E28: 103845214110191 | F28: 285 | G28: 138 | H28: 44 | I28: 93 | J28: =ROUND(SUM(G28:I28),1) -> 275.0 | K28: =ROUND(F28*0.7+J28*0.3,2) -> 282.00 | L28: 25 | M28: 是
A29: 调剂 | B29: 085600 | C29: 材料与化工 | D29: 管玉志 | E29: 102905211804536 | F29: 287 | G29: 132 | H29: 46 | I29: 92 | J29: =G29+H29+I29 -> 270.0 | K29: =F29*0.7+J29*0.3 -> 281.90 | L29: 26 | M29: 是
A30: 调剂 | B30: 085600 | C30: 材料与化工 | D30: 胡正昌 | E30: 103575210013230 | F30: 294 | G30: 130 | H30: 45 | I30: 78 | J30: =G30+H30+I30 -> 253.0 | K30: =F30*0.7+J30*0.3 -> 281.70 | L30: 27 | M30: 是
A31: 调剂 | B31: 085600 | C31: 材料与化工 | D31: 徐德荣 | E31: 104035085600754 | F31: 292 | G31: 128.8 | H31: 42.6 | I31: 85.9 | J31: =SUM(G31:I31) -> 257.3 | K31: =ROUND(F31*0.7+J31*0.3,2) -> 281.59 | L31: 28 | M31: 是
A32: 调剂 | B32: 085600 | C32: 材料与化工 | D32: 周斯琪 | E32: 106985321210748 | F32: 325 | G32: 80 | H32: 30 | I32: 70 | J32: =G32+H32+I32 -> 180.0 | K32: =F32*0.7+J32*0.3 -> 281.50 | L32: 29 | M32: 是
A33: 调剂 | B33: 085600 | C33: 材料与化工 | D33: 于志浩 | E33: 104255540005161 | F33: 295 | G33: 135 | H33: 35 | I33: 80 | J33: =G33+H33+I33 -> 250.0 | K33: =F33*0.7+J33*0.3 -> 281.50 | L33: 30 | M33: 是
A34: 调剂 | B34: 085600 | C34: 材料与化工 | D34: 陈雅菲 | E34: 103595210009663 | F34: 285 | G34: 137 | H34: 40 | I34: 94 | J34: =ROUND(SUM(G34:I34),1) -> 271.0 | K34: =ROUND(F34*0.7+J34*0.3,2) -> 280.80 | L34: 31 | M34: 是
A35: 调剂 | B35: 085600 | C35: 材料与化工 | D35: 陆子洋 | E35: 103585210011677 | F35: 327 | G35: 78 | H35: 30 | I35: 65 | J35: =G35+H35+I35 -> 173.0 | K35: =F35*0.7+J35*0.3 -> 280.80 | L35: 32 | M35: 是
A36: 调剂 | B36: 085600 | C36: 材料与化工 | D36: 李坤 | E36: 102875210606480 | F36: 281 | G36: 140 | H36: 50 | I36: 90 | J36: =G36+H36+I36 -> 280.0 | K36: =F36*0.7+J36*0.3 -> 280.70 | L36: 33 | M36: 是
A37: 调剂 | B37: 085600 | C37: 材料与化工 | D37: 姚泽宇 | E37: 102885500007565 | F37: 317 | G37: 90 | H37: 30 | I37: 75 | J37: =G37+H37+I37 -> 195.0 | K37: =F37*0.7+J37*0.3 -> 280.40 | L37: 34 | M37: 是
A38: 调剂 | B38: 085600 | C38: 材料与化工 | D38: 范钦崟 | E38: 106135085600127 | F38: 282 | G38: 140 | H38: 45 | I38: 90 | J38: =ROUND(SUM(G38:I38),1) -> 275.0 | K38: =ROUND(F38*0.7+J38*0.3,2) -> 279.90 | L38: 35 | M38: 是
A39: 调剂 | B39: 085600 | C39: 材料与化工 | D39: 徐卓昱 | E39: 102875210607219 | F39: 281 | G39: 140 | H39: 46 | I39: 90 | J39: =G39+H39+I39 -> 276.0 | K39: =F39*0.7+J39*0.3 -> 279.50 | L39: 36 | M39: 是
A40: 调剂 | B40: 085600 | C40: 材料与化工 | D40: 邓蕊 | E40: 106355319025200 | F40: 279 | G40: 145 | H40: 45 | I40: 90 | J40: =ROUND(SUM(G40:I40),1) -> 280.0 | K40: =ROUND(F40*0.7+J40*0.3,2) -> 279.30 | L40: 37 | M40: 是
A41: 调剂 | B41: 085600 | C41: 材料与化工 | D41: 冯雨婷 | E41: 107105141806107 | F41: 274 | G41: 146 | H41: 47 | I41: 98 | J41: =ROUND(SUM(G41:I41),1) -> 291.0 | K41: =ROUND(F41*0.7+J41*0.3,2) -> 279.10 | L41: 38 | M41: 是
A42: 调剂 | B42: 085600 | C42: 材料与化工 | D42: 郑卜玮 | E42: 102885500014608 | F42: 288 | G42: 135 | H42: 40 | I42: 80 | J42: =ROUND(SUM(G42:I42),1) -> 255.0 | K42: =ROUND(F42*0.7+J42*0.3,2) -> 278.10 | L42: 39 | M42: 是
A43: 调剂 | B43: 085600 | C43: 材料与化工 | D43: 王潇华 | E43: 104035085600558 | F43: 279 | G43: 141 | H43: 47 | I43: 88 | J43: =G43+H43+I43 -> 276.0 | K43: =F43*0.7+J43*0.3 -> 278.10 | L43: 40 | M43: 是
A44: 调剂 | B44: 085600 | C44: 材料与化工 | D44: 张凡 | E44: 100085210007585 | F44: 282 | G44: 130 | H44: 45 | I44: 93 | J44: =SUM(G44:I44) -> 268.0 | K44: =SUM(0.7*F44+0.3*J44) -> 277.80 | L44: 41 | M44: 是
A45: 调剂 | B45: 085600 | C45: 材料与化工 | D45: 朱俊茹 | E45: 100085210006231 | F45: 298 | G45: 110 | H45: 40 | I45: 80 | J45: =G45+H45+I45 -> 230.0 | K45: =F45*0.7+J45*0.3 -> 277.60 | L45: 42 | M45: 是
A46: 调剂 | B46: 085600 | C46: 材料与化工 | D46: 陈涛 | E46: 102905211808035 | F46: 278 | G46: 130 | H46: 50 | I46: 95 | J46: =G46+H46+I46 -> 275.0 | K46: =F46*0.7+J46*0.3 -> 277.10 | L46: 43 | M46: 是
A47: 调剂 | B47: 085600 | C47: 材料与化工 | D47: 景乐 | E47: 104225510913111 | F47: 276 | G47: 140 | H47: 48 | I47: 90 | J47: =G47+H47+I47 -> 278.0 | K47: =F47*0.7+J47*0.3 -> 276.60 | L47: 44 | M47: 是
A48: 调剂 | B48: 085600 | C48: 材料与化工 | D48: 张驰 | E48: 107105321607519 | F48: 281 | G48: 135 | H48: 40 | I48: 90 | J48: =G48+H48+I48 -> 265.0 | K48: =F48*0.7+J48*0.3 -> 276.20 | L48: 45 | M48: 是
A49: 调剂 | B49: 085600 | C49: 材料与化工 | D49: 徐圣益 | E49: 106155085600413 | F49: 304 | G49: 110 | H49: 30 | I49: 70 | J49: =G49+H49+I49 -> 210.0 | K49: =F49*0.7+J49*0.3 -> 275.80 | L49: 46 | M49: 是
A50: 调剂 | B50: 085600 | C50: 材料与化工 | D50: 刘毅 | E50: 102915210301292 | F50: 276 | G50: 140 | H50: 45 | I50: 90 | J50: =ROUND(SUM(G50:I50),1) -> 275.0 | K50: =ROUND(F50*0.7+J50*0.3,2) -> 275.70 | L50: 47 | M50: 是
A51: 调剂 | B51: 085600 | C51: 材料与化工 | D51: 王智 | E51: 106115500900554 | F51: 289 | G51: 130 | H51: 36 | I51: 77 | J51: =G51+H51+I51 -> 243.0 | K51: =F51*0.7+J51*0.3 -> 275.20 | L51: 48 | M51: 是
A52: 调剂 | B52: 085600 | C52: 材料与化工 | D52: 郝佳杰 | E52: 106995321216215 | F52: 273 | G52: 145 | H52: 45 | I52: 90 | J52: =ROUND(SUM(G52:I52),1) -> 280.0 | K52: =ROUND(F52*0.7+J52*0.3,2) -> 275.10 | L52: 49 | M52: 是
A53: 调剂 | B53: 085600 | C53: 材料与化工 | D53: 周文彬 | E53: 104975400351160 | F53: 292 | G53: 120 | H53: 35 | I53: 80 | J53: =ROUND(SUM(G53:I53),1) -> 235.0 | K53: 274.90 | L53: 50 | M53: 是
A54: 调剂 | B54: 085600 | C54: 材料与化工 | D54: 周愉欣 | E54: 144305174000181 | F54: 268 | G54: 144.5 | H54: 48.4 | I54: 96.1 | J54: =SUM(G54:I54) -> 289.0 | K54: 274.30 | L54: 51 | M54: 是
A55: 调剂 | B55: 085600 | C55: 材料与化工 | D55: 刁宇航 | E55: 100055321207630 | F55: 312 | G55: 90 | H55: 30 | I55: 65 | J55: =ROUND(SUM(G55:I55),1) -> 185.0 | K55: 273.90 | L55: 52 | M55: 是
A56: 调剂 | B56: 085600 | C56: 材料与化工 | D56: 杨瑾钊 | E56: 102905211801508 | F56: 274 | G56: 138 | H56: 43 | I56: 91 | J56: =ROUND(SUM(G56:I56),1) -> 272.0 | K56: 273.40 | L56: 53 | M56: 是
A57: 调剂 | B57: 085600 | C57: 材料与化工 | D57: 张立超 | E57: 106995414818859 | F57: 295 | G57: 110 | H57: 42 | I57: 70 | J57: =ROUND(SUM(G57:I57),1) -> 222.0 | K57: 273.10 | L57: 54 | M57: 是
A58: 调剂 | B58: 085600 | C58: 材料与化工 | D58: 王哲 | E58: 104035085600175 | F58: 291 | G58: 120 | H58: 40 | I58: 70 | J58: =G58+H58+I58 -> 230.0 | K58: =F58*0.7+J58*0.3 -> 272.70 | L58: 55 | M58: 是
A59: 调剂 | B59: 085600 | C59: 材料与化工 | D59: 李怡雯 | E59: 100805180306706 | F59: 263 | G59: 147 | H59: 49 | I59: 97 | J59: =ROUND(SUM(G59:I59),1) -> 293.0 | K59: =ROUND(F59*0.7+J59*0.3,2) -> 272.00 | L59: 56 | M59: 是
A60: 调剂 | B60: 085600 | C60: 材料与化工 | D60: 许辽 | E60: 103585210004023 | F60: 290 | G60: 115 | H60: 45 | I60: 70 | J60: =ROUND(SUM(G60:I60),1) -> 230.0 | K60: 272.00 | L60: 57 | M60: 是
A61: 调剂 | B61: 085600 | C61: 材料与化工 | D61: 田茂余 | E61: 106985321210749 | F61: 264 | G61: 145.1 | H61: 48.6 | I61: 96.4 | J61: =SUM(G61:I61) -> 290.1 | K61: 271.83 | L61: 58 | M61: 是
A62: 调剂 | B62: 085600 | C62: 材料与化工 | D62: 陈文涛 | E62: 103575210006790 | F62: 321 | G62: 68 | H62: 27 | I62: 61 | J62: =ROUND(SUM(G62:I62),1) -> 156.0 | K62: 271.50 | L62: 59 | M62: 是
A63: 调剂 | B63: 085600 | C63: 材料与化工 | D63: 丁海韵 | E63: 102945213205054 | F63: 266 | G63: 141.7 | H63: 47.4 | I63: 94.2 | J63: =SUM(G63:I63) -> 283.3 | K63: 271.19 | L63: 60 | M63: 是
A64: 调剂 | B64: 085600 | C64: 材料与化工 | D64: 杨峰 | E64: 102255210501572 | F64: 310 | G64: 80 | H64: 40 | I64: 60 | J64: =ROUND(SUM(G64:I64),1) -> 180.0 | K64: 271.00 | L64: 61 | M64: 是
A65: 调剂 | B65: 085600 | C65: 材料与化工 | D65: 朱宇 | E65: 100085210006173 | F65: 273 | G65: 125 | H65: 46 | I65: 95 | J65: =SUM(G65:I65) -> 266.0 | K65: =SUM(0.7*F65+0.3*J65) -> 270.90 | L65: 62 | M65: 是
A66: 调剂 | B66: 085600 | C66: 材料与化工 | D66: 高子鑫 | E66: 102995210304203 | F66: 263 | G66: 145 | H66: 47 | I66: 96 | J66: =G66+H66+I66 -> 288.0 | K66: =F66*0.7+J66*0.3 -> 270.50 | L66: 63 | M66: 是
A67: 调剂 | B67: 085600 | C67: 材料与化工 | D67: 李桃 | E67: 104975400337440 | F67: 272 | G67: 133.2 | H67: 44.6 | I67: 89.1 | J67: =SUM(G67:I67) -> 266.9 | K67: =ROUND(F67*0.7+J67*0.3,2) -> 270.47 | L67: 64 | M67: 是
A68: 调剂 | B68: 085600 | C68: 材料与化工 | D68: 曹瑞瑞 | E68: 102875210607204 | F68: 268 | G68: 142 | H68: 45 | I68: 88 | J68: =G68+H68+I68 -> 275.0 | K68: =F68*0.7+J68*0.3 -> 270.10 | L68: 65 | M68: 是
A69: 调剂 | B69: 085600 | C69: 材料与化工 | D69: 吴兴亚 | E69: 104875000133593 | F69: 268 | G69: 136 | H69: 45 | I69: 93 | J69: =ROUND(SUM(G69:I69),1) -> 274.0 | K69: =ROUND(F69*0.7+J69*0.3,2) -> 269.80 | L69: 66 | M69: 是
A70: 调剂 | B70: 085600 | C70: 材料与化工 | D70: 孔文帅 | E70: 101125202503839 | F70: 301 | G70: 100 | H70: 32 | I70: 65 | J70: =G70+H70+I70 -> 197.0 | K70: =F70*0.7+J70*0.3 -> 269.80 | L70: 67 | M70: 是
A71: 调剂 | B71: 085600 | C71: 材料与化工 | D71: 唐俪宁 | E71: 102905211808031 | F71: 291 | G71: 100 | H71: 40 | I71: 80 | J71: =G71+H71+I71 -> 220.0 | K71: =F71*0.7+J71*0.3 -> 269.70 | L71: 68 | M71: 是
A72: 调剂 | B72: 085600 | C72: 材料与化工 | D72: 刘赫翔 | E72: 100805180306897 | F72: 279 | G72: 123.2 | H72: 41.1 | I72: 82.4 | J72: =SUM(G72:I72) -> 246.7 | K72: =ROUND(F72*0.7+J72*0.3,2) -> 269.31 | L72: 69 | M72: 是
A73: 调剂 | B73: 085600 | C73: 材料与化工 | D73: 陈浩 | E73: 104975400339104 | F73: 269 | G73: 140 | H73: 40 | I73: 88 | J73: =G73+H73+I73 -> 268.0 | K73: =F73*0.7+J73*0.3 -> 268.70 | L73: 70 | M73: 是
A74: 调剂 | B74: 085600 | C74: 材料与化工 | D74: 万思 | E74: 103575210012898 | F74: 283 | G74: 130 | H74: 40 | I74: 65 | J74: =ROUND(SUM(G74:I74),1) -> 235.0 | K74: =ROUND(F74*0.7+J74*0.3,2) -> 268.60 | L74: 71 | M74: 是
A75: 调剂 | B75: 085600 | C75: 材料与化工 | D75: 胡聪慧 | E75: 102915210301468 | F75: 270 | G75: 132 | H75: 39 | I75: 90 | J75: =ROUND(SUM(G75:I75),1) -> 261.0 | K75: =ROUND(F75*0.7+J75*0.3,2) -> 267.30 | L75: 72 | M75: 是
A76: 调剂 | B76: 085600 | C76: 材料与化工 | D76: 薛雅丹 | E76: 102555250002789 | F76: 270 | G76: 123 | H76: 45 | I76: 92 | J76: =SUM(G76:I76) -> 260.0 | K76: =SUM(0.7*F76+0.3*J76) -> 267.00 | L76: 73 | M76: 是
A77: 调剂 | B77: 085600 | C77: 材料与化工 | D77: 王新舒 | E77: 102915210301054 | F77: 295 | G77: 100 | H77: 40 | I77: 60 | J77: =ROUND(SUM(G77:I77),1) -> 200.0 | K77: =ROUND(F77*0.7+J77*0.3,2) -> 266.50 | L77: 74 | M77: 是
A78: 调剂 | B78: 085600 | C78: 材料与化工 | D78: 孙雨豪 | E78: 103575210004188 | F78: 269 | G78: 123 | H78: 45 | I78: 90 | J78: =ROUND(SUM(G78:I78),1) -> 258.0 | K78: =ROUND(F78*0.7+J78*0.3,2) -> 265.70 | L78: 75 | M78: 是
A79: 调剂 | B79: 085600 | C79: 材料与化工 | D79: 刘莹莹 | E79: 104255540010640 | F79: 289 | G79: 90 | H79: 40 | I79: 81 | J79: =SUM(G79:I79) -> 211.0 | K79: =SUM(0.7*F79+0.3*J79) -> 265.60 | L79: 76 | M79: 是
A80: 调剂 | B80: 085600 | C80: 材料与化工 | D80: 陈伟民 | E80: 101125202503821 | F80: 277 | G80: 112 | H80: 35 | I80: 89 | J80: =ROUND(SUM(G80:I80),1) -> 236.0 | K80: =ROUND(F80*0.7+J80*0.3,2) -> 264.70 | L80: 77 | M80: 是
A81: 调剂 | B81: 085600 | C81: 材料与化工 | D81: 罗方明 | E81: 106105085600289 | F81: 287 | G81: 82 | H81: 45 | I81: 85 | J81: =SUM(G81:I81) -> 212.0 | K81: =SUM(0.7*F81+0.3*J81) -> 264.50 | L81: 78 | M81: 是
A82: 调剂 | B82: 085600 | C82: 材料与化工 | D82: 任乐翔 | E82: 102885500011718 | F82: 304 | G82: 75 | H82: 35 | I82: 60 | J82: =ROUND(SUM(G82:I82),1) -> 170.0 | K82: =ROUND(F82*0.7+J82*0.3,2) -> 263.80 | L82: 79 | M82: 是
A83: 调剂 | B83: 085600 | C83: 材料与化工 | D83: 于之洋 | E83: 103595210009654 | F83: 269 | G83: 121 | H83: 41 | I83: 88 | J83: =ROUND(SUM(G83:I83),1) -> 250.0 | K83: =ROUND(F83*0.7+J83*0.3,2) -> 263.30 | L83: 80 | M83: 是
A84: 调剂 | B84: 085600 | C84: 材料与化工 | D84: 徐诚筱 | E84: 100085210004687 | F84: 286 | G84: 100 | H84: 35 | I84: 70 | J84: =G84+H84+I84 -> 205.0 | K84: =F84*0.7+J84*0.3 -> 261.70 | L84: 81 | M84: 是
A85: 调剂 | B85: 085600 | C85: 材料与化工 | D85: 吕乐乐 | E85: 102915210301352 | F85: 287 | G85: 100 | H85: 40 | I85: 60 | J85: =ROUND(SUM(G85:I85),1) -> 200.0 | K85: =ROUND(F85*0.7+J85*0.3,2) -> 260.90 | L85: 82 | M85: 是
A86: 调剂 | B86: 085600 | C86: 材料与化工 | D86: 蒋智莹 | E86: 104035085600873 | F86: 291 | G86: 90 | H86: 40 | I86: 60 | J86: =ROUND(SUM(G86:I86),1) -> 190.0 | K86: =ROUND(F86*0.7+J86*0.3,2) -> 260.70 | L86: 83 | M86: 是
A87: 调剂 | B87: 085600 | C87: 材料与化工 | D87: 孙硕 | E87: 104225510106455 | F87: 326 | G87: 90 | H87: 35 | I87: 50 | J87: 175.0 | K87: 280.70 | M87: 否 | N87: 专业综合 面试不合格
A88: 调剂 | B88: 085600 | C88: 材料与化工 | D88: 崔鹏 | E88: 102875210606748 | F88: 321 | G88: 80 | H88: 35 | I88: 55 | J88: 170.0 | K88: 275.70 | M88: 否 | N88: 专业综合 面试不合格
A89: 调剂 | B89: 085600 | C89: 材料与化工 | D89: 李自豪 | E89: 101455000001932 | F89: 324 | G89: 80 | H89: 25 | I89: 55 | J89: 160.0 | K89: 274.80 | M89: 否 | N89: 专业综合 面试不合格
A90: 调剂 | B90: 085600 | C90: 材料与化工 | D90: 王永杰 | E90: 107105620214612 | F90: 313 | G90: 100 | H90: 30 | I90: 50 | J90: 180.0 | K90: 273.10 | M90: 否 | N90: 专业综合 面试不合格
A91: 调剂 | B91: 085600 | C91: 材料与化工 | D91: 张博义 | E91: 106995131513959 | F91: 315 | G91: 90 | H91: 30 | I91: 55 | J91: 175.0 | K91: 273.00 | M91: 否 | N91: 专业综合 面试不合格
A92: 调剂 | B92: 085600 | C92: 材料与化工 | D92: 杜卓 | E92: 103595210009668 | F92: 317 | G92: 90 | H92: 30 | I92: 50 | J92: 170.0 | K92: 272.90 | M92: 否 | N92: 专业综合 面试不合格
A93: 调剂 | B93: 085600 | C93: 材料与化工 | D93: 王晨恒 | E93: 107055610302862 | F93: 307 | G93: 100 | H93: 30 | I93: 55 | J93: 185.0 | K93: 270.40 | M93: 否 | N93: 专业综合 面试不合格
A94: 调剂 | B94: 085600 | C94: 材料与化工 | D94: 邱佳亮 | E94: 103575210007934 | F94: 309 | G94: 90 | H94: 30 | I94: 58 | J94: 178.0 | K94: 269.70 | M94: 否 | N94: 专业综合 面试不合格
A95: 调剂 | B95: 085600 | C95: 材料与化工 | D95: 杨涵 | E95: 106995610320524 | F95: 311 | G95: 80 | H95: 31 | I95: 57 | J95: 168.0 | K95: 268.10 | M95: 否 | N95: 专业综合 面试不合格
A96: 调剂 | B96: 085600 | C96: 材料与化工 | D96: 王尉廷 | E96: 102905211804527 | F96: 301 | G96: 100 | H96: 35 | I96: 55 | J96: 190.0 | K96: 267.70 | M96: 否 | N96: 专业综合 面试不合格
A97: 调剂 | B97: 085600 | C97: 材料与化工 | D97: 邓子阳 | E97: 104035085600037 | F97: 301 | G97: 95 | H97: 35 | I97: 55 | J97: 185.0 | K97: 266.20 | M97: 否 | N97: 专业综合 面试不合格
A98: 调剂 | B98: 085600 | C98: 材料与化工 | D98: 沈乐 | E98: 102875210606482 | F98: 278 | G98: 140 | H98: 40 | I98: 58 | J98: 238.0 | K98: 266.00 | M98: 否 | N98: 专业综合 面试不合格
A99: 调剂 | B99: 085600 | C99: 材料与化工 | D99: 张靖凯 | E99: 102905211804504 | F99: 302 | G99: 95 | H99: 32 | I99: 55 | J99: 182.0 | K99: 266.00 | M99: 否 | N99: 专业综合 面试不合格
A100: 调剂 | B100: 085601 | C100: 材料与化工 | D100: 孙越越 | E100: 107105613302262 | F100: 295 | G100: 103.1 | H100: 33.2 | I100: 59.1 | J100: 195.4 | K100: 265.12 | M100: 否 | N100: 专业综合 面试不合格
A101: 调剂 | B101: 085602 | C101: 材料与化工 | D101: 韩萌 | E101: 104975400352914 | F101: 295 | G101: 105 | H101: 32 | I101: 57 | J101: 194.0 | K101: 264.70 | M101: 否 | N101: 专业综合 面试不合格
A102: 调剂 | B102: 085603 | C102: 材料与化工 | D102: 章蔡宇 | E102: 102915210301085 | F102: 304 | G102: 80 | H102: 35 | I102: 56 | J102: 171.0 | K102: 264.10 | M102: 否 | N102: 专业综合 面试不合格
A103: 调剂 | B103: 085604 | C103: 材料与化工 | D103: 朱墨妍 | E103: 102915210402784 | F103: 293 | G103: 110 | H103: 30 | I103: 56 | J103: 196.0 | K103: 263.90 | M103: 否 | N103: 专业综合 面试不合格
A104: 调剂 | B104: 085605 | C104: 材料与化工 | D104: 周文军 | E104: 104035085600524 | F104: 301 | G104: 88.5 | H104: 29.2 | I104: 58.8 | J104: 176.5 | K104: 263.65 | M104: 否 | N104: 专业综合 面试不合格
A105: 调剂 | B105: 085606 | C105: 材料与化工 | D105: 崔植硕 | E105: 104915310707896 | F105: 313 | G105: 66 | H105: 30 | I105: 52 | J105: 148.0 | K105: 263.50 | M105: 否 | N105: 专业综合 面试不合格
A106: 调剂 | B106: 085607 | C106: 材料与化工 | D106: 冯士龙 | E106: 107015322407542 | F106: 281 | G106: 118 | H106: 45 | I106: 59 | J106: 222.0 | K106: 263.30 | M106: 否 | N106: 专业综合 面试不合格
A107: 调剂 | B107: 085608 | C107: 材料与化工 | D107: 程广海 | E107: 102805250012761 | F107: 286 | G107: 110 | H107: 46 | I107: 54 | J107: 210.0 | K107: 263.20 | M107: 否 | N107: 专业综合 面试不合格
A108: 调剂 | B108: 085609 | C108: 材料与化工 | D108: 张杰 | E108: 143255431500007 | F108: 316 | G108: 50 | H108: 35 | I108: 55 | J108: 140.0 | K108: 263.20 | M108: 否 | N108: 专业综合 面试不合格
A109: 调剂 | B109: 085610 | C109: 材料与化工 | D109: 孙林飞 | E109: 104225510913513 | F109: 284 | G109: 120 | H109: 35 | I109: 59 | J109: 214.0 | K109: 263.00 | M109: 否 | N109: 专业综合 面试不合格
A110: 调剂 | B110: 085611 | C110: 材料与化工 | D110: 王伟 | E110: 106135085600050 | F110: 289 | G110: 111 | H110: 40 | I110: 51 | J110: 202.0 | K110: 262.90 | M110: 否 | N110: 专业综合 面试不合格
A111: 调剂 | B111: 085612 | C111: 材料与化工 | D111: 吴浮召 | E111: 103585210011756 | F111: 328 | G111: 54.1 | H111: 18.2 | I111: 36.1 | J111: 108.4 | K111: 262.12 | M111: 否 | N111: 专业综合 面试不合格
A112: 调剂 | B112: 085613 | C112: 材料与化工 | D112: 王梦伟 | E112: 103575210013769 | F112: 299 | G112: 90 | H112: 36 | I112: 50 | J112: 176.0 | K112: 262.10 | M112: 否 | N112: 专业综合 面试不合格
A113: 调剂 | B113: 085614 | C113: 材料与化工 | D113: 吴晶涌 | E113: 103595210009836 | F113: 304 | G113: 78 | H113: 32 | I113: 54 | J113: 164.0 | K113: 262.00 | M113: 否 | N113: 专业综合 面试不合格
A114: 调剂 | B114: 085615 | C114: 材料与化工 | D114: 谢定洲 | E114: 106135085600649 | F114: 307 | G114: 84.2 | H114: 27.8 | I114: 45 | J114: 157.0 | K114: 262.00 | M114: 否 | N114: 专业综合 面试不合格
A115: 调剂 | B115: 085616 | C115: 材料与化工 | D115: 杨梦倩 | E115: 102905211807733 | F115: 285 | G115: 112.2 | H115: 37.1 | I115: 58 | J115: 207.3 | K115: 261.69 | M115: 否 | N115: 专业综合 面试不合格
A116: 调剂 | B116: 085617 | C116: 材料与化工 | D116: 张淇瑞 | E116: 102915210301083 | F116: 299 | G116: 85 | H116: 35 | I116: 54 | J116: 174.0 | K116: 261.50 | M116: 否 | N116: 专业综合 面试不合格
A117: 调剂 | B117: 085618 | C117: 材料与化工 | D117: 王琳琳 | E117: 104225510913386 | F117: 290 | G117: 107 | H117: 30 | I117: 58 | J117: 195.0 | K117: 261.50 | M117: 否 | N117: 专业综合 面试不合格
A118: 调剂 | B118: 085619 | C118: 材料与化工 | D118: 王建辉 | E118: 103595210009646 | F118: 292 | G118: 100 | H118: 30 | I118: 58 | J118: 188.0 | K118: 260.80 | M118: 否 | N118: 专业综合 面试不合格
A119: 调剂 | B119: 085620 | C119: 材料与化工 | D119: 朱春洋 | E119: 103375210013950 | F119: 312 | G119: 65 | H119: 25 | I119: 50 | J119: 140.0 | K119: 260.40 | M119: 否 | N119: 专业综合 面试不合格
A120: 调剂 | B120: 085621 | C120: 材料与化工 | D120: 桂悦 | E120: 105905678916189 | F120: 274 | G120: 135 | H120: 35 | I120: 58 | J120: 228.0 | K120: 260.20 | M120: 否 | N120: 专业综合 面试不合格
A121: 调剂 | B121: 085622 | C121: 材料与化工 | D121: 徐子扬 | E121: 103575210009675 | F121: 294 | G121: 93.1 | H121: 30.7 | I121: 56 | J121: 179.8 | K121: 259.74 | M121: 否 | N121: 专业综合 面试不合格
A122: 调剂 | B122: 085623 | C122: 材料与化工 | D122: 赵伟杰 | E122: 106155085600904 | F122: 276 | G122: 124 | H122: 42 | I122: 55 | J122: 221.0 | K122: 259.50 | M122: 否 | N122: 专业综合 面试不合格
A123: 调剂 | B123: 085624 | C123: 材料与化工 | D123: 黄柏森 | E123: 102915210301532 | F123: 296 | G123: 90 | H123: 30 | I123: 52 | J123: 172.0 | K123: 258.80 | M123: 否 | N123: 专业综合 面试不合格
A124: 调剂 | B124: 085625 | C124: 材料与化工 | D124: 吴子平 | E124: 102915210301335 | F124: 299 | G124: 80 | H124: 35 | I124: 50 | J124: 165.0 | K124: 258.80 | M124: 否 | N124: 专业综合 面试不合格
A125: 调剂 | B125: 085626 | C125: 材料与化工 | D125: 左孟娇 | E125: 101515000006488 | F125: 278 | G125: 118 | H125: 40 | I125: 55 | J125: 213.0 | K125: 258.50 | M125: 否 | N125: 专业综合 面试不合格
A126: 调剂 | B126: 085627 | C126: 材料与化工 | D126: 刘云飞 | E126: 104035085600513 | F126: 299 | G126: 80 | H126: 32 | I126: 51 | J126: 163.0 | K126: 258.20 | M126: 否 | N126: 专业综合 面试不合格
A127: 调剂 | B127: 085628 | C127: 材料与化工 | D127: 信玉杰 | E127: 100055610312654 | F127: 296 | G127: 90 | H127: 30 | I127: 50 | J127: 170.0 | K127: 258.20 | M127: 否 | N127: 专业综合 面试不合格
A128: 调剂 | B128: 085629 | C128: 材料与化工 | D128: 余伟 | E128: 103595210009837 | F128: 296 | G128: 80 | H128: 35 | I128: 55 | J128: 170.0 | K128: 258.20 | M128: 否 | N128: 专业综合 面试不合格
A129: 调剂 | B129: 085630 | C129: 材料与化工 | D129: 李涛 | E129: 102915210301363 | F129: 278 | G129: 121 | H129: 38 | I129: 52 | J129: 211.0 | K129: 257.90 | M129: 否 | N129: 专业综合 面试不合格
A130: 调剂 | B130: 085631 | C130: 材料与化工 | D130: 渠毅 | E130: 101455000014738 | F130: 336 | G130: 37.7 | H130: 12.6 | I130: 25.2 | J130: 75.5 | K130: 257.85 | M130: 否 | N130: 专业综合 面试不合格
A131: 调剂 | B131: 085632 | C131: 材料与化工 | D131: 王珍 | E131: 104035085600905 | F131: 288 | G131: 98.2 | H131: 32.9 | I131: 55 | J131: 186.1 | K131: 257.43 | M131: 否 | N131: 专业综合 面试不合格
A132: 调剂 | B132: 085633 | C132: 材料与化工 | D132: 聂浩然 | E132: 104595410930776 | F132: 279 | G132: 113 | H132: 37 | I132: 57 | J132: 207.0 | K132: 257.40 | M132: 否 | N132: 专业综合 面试不合格
A133: 调剂 | B133: 085634 | C133: 材料与化工 | D133: 王浦舟 | E133: 102875210611372 | F133: 284 | G133: 100 | H133: 40 | I133: 55 | J133: 195.0 | K133: 257.30 | M133: 否 | N133: 专业综合 面试不合格
A134: 调剂 | B134: 085661 | C134: 材料与化工 | D134: 崔正祺 | E134: 102885500009531 | F134: 306 | G134: 69 | H134: 26 | I134: 48 | J134: 143.0 | K134: 257.10 | M134: 否 | N134: 专业综合 面试不合格
A135: 调剂 | B135: 085635 | C135: 材料与化工 | D135: 王笑笑 | E135: 102915210301195 | F135: 292 | G135: 90 | H135: 30 | I135: 55 | J135: 175.0 | K135: 256.90 | M135: 否 | N135: 专业综合 面试不合格
A136: 调剂 | B136: 085636 | C136: 材料与化工 | D136: 钟友杰 | E136: 103585210004019 | F136: 292 | G136: 95 | H136: 30 | I136: 50 | J136: 175.0 | K136: 256.90 | M136: 否 | N136: 专业综合 面试不合格
A137: 调剂 | B137: 085637 | C137: 材料与化工 | D137: 杨盛潮 | E137: 107005361615575 | F137: 275 | G137: 120.1 | H137: 39.2 | I137: 55 | J137: 214.3 | K137: 256.79 | M137: 否 | N137: 专业综合 面试不合格
A138: 调剂 | B138: 085638 | C138: 材料与化工 | D138: 徐茗静 | E138: 104035085600309 | F138: 286 | G138: 85 | H138: 45 | I138: 58 | J138: 188.0 | K138: 256.60 | M138: 否 | N138: 专业综合 面试不合格
A139: 调剂 | B139: 085639 | C139: 材料与化工 | D139: 周诗恒 | E139: 106115500900445 | F139: 285 | G139: 100 | H139: 35 | I139: 55 | J139: 190.0 | K139: 256.50 | M139: 否 | N139: 专业综合 面试不合格
A140: 调剂 | B140: 085640 | C140: 材料与化工 | D140: 陶定林 | E140: 106105085600423 | F140: 293 | G140: 70 | H140: 45 | I140: 55 | J140: 170.0 | K140: 256.10 | M140: 否 | N140: 专业综合 面试不合格
A141: 调剂 | B141: 085641 | C141: 材料与化工 | D141: 武梦浩 | E141: 101455000001937 | F141: 272 | G141: 124 | H141: 36 | I141: 57 | J141: 217.0 | K141: 255.50 | M141: 否 | N141: 专业综合 面试不合格
A142: 调剂 | B142: 085642 | C142: 材料与化工 | D142: 朱萍 | E142: 103595210001495 | F142: 278 | G142: 99 | H142: 45 | I142: 59 | J142: 203.0 | K142: 255.50 | M142: 否 | N142: 专业综合 面试不合格
A143: 调剂 | B143: 085643 | C143: 材料与化工 | D143: 胡佳伟 | E143: 107105141305988 | F143: 287 | G143: 97.3 | H143: 32.6 | I143: 52 | J143: 181.9 | K143: 255.47 | M143: 否 | N143: 专业综合 面试不合格
A144: 调剂 | B144: 085644 | C144: 材料与化工 | D144: 赵晓雅 | E144: 104595411130341 | F144: 306 | G144: 50 | H144: 30 | I144: 56 | J144: 136.0 | K144: 255.00 | M144: 否 | N144: 专业综合 面试不合格
A145: 调剂 | B145: 085645 | C145: 材料与化工 | D145: 袁星宇 | E145: 102915210301076 | F145: 312 | G145: 42 | H145: 35 | I145: 45 | J145: 122.0 | K145: 255.00 | M145: 否 | N145: 专业综合 面试不合格
A146: 调剂 | B146: 085646 | C146: 材料与化工 | D146: 巴欣欣 | E146: 102885500012386 | F146: 287 | G146: 93 | H146: 42 | I146: 45 | J146: 180.0 | K146: 254.90 | M146: 否 | N146: 专业综合 面试不合格
A147: 调剂 | B147: 085647 | C147: 材料与化工 | D147: 岳明杨 | E147: 106135085600035 | F147: 266 | G147: 130 | H147: 40 | I147: 59 | J147: 229.0 | K147: 254.90 | M147: 否 | N147: 专业综合 面试不合格
A148: 调剂 | B148: 085648 | C148: 材料与化工 | D148: 刘庆莲 | E148: 103575210010751 | F148: 302 | G148: 60 | H148: 30 | I148: 55 | J148: 145.0 | K148: 254.90 | M148: 否 | N148: 专业综合 面试不合格
A149: 调剂 | B149: 085649 | C149: 材料与化工 | D149: 陈思维 | E149: 106355319024964 | F149: 281 | G149: 100 | H149: 35 | I149: 55 | J149: 190.0 | K149: 253.70 | M149: 否 | N149: 专业综合 面试不合格
A150: 调剂 | B150: 085650 | C150: 材料与化工 | D150: 汪斌 | E150: 103575210004564 | F150: 281 | G150: 110 | H150: 30 | I150: 50 | J150: 190.0 | K150: 253.70 | M150: 否 | N150: 专业综合 面试不合格
A151: 调剂 | B151: 085651 | C151: 材料与化工 | D151: 张方正 | E151: 103595210009662 | F151: 295 | G151: 80 | H151: 28 | I151: 49 | J151: 157.0 | K151: 253.60 | M151: 否 | N151: 专业综合 面试不合格
A152: 调剂 | B152: 085652 | C152: 材料与化工 | D152: 左昌盛 | E152: 102915210402786 | F152: 301 | G152: 80 | H152: 27 | I152: 36 | J152: 143.0 | K152: 253.60 | M152: 否 | N152: 专业综合 面试不合格
A153: 调剂 | B153: 085653 | C153: 材料与化工 | D153: 亓向东 | E153: 101455000016311 | F153: 296 | G153: 86 | H153: 28 | I153: 40 | J153: 154.0 | K153: 253.40 | M153: 否 | N153: 专业综合 面试不合格
A154: 调剂 | B154: 085654 | C154: 材料与化工 | D154: 徐园园 | E154: 104595411130474 | F154: 301 | G154: 69 | H154: 24 | I154: 46 | J154: 139.0 | K154: 252.40 | M154: 否 | N154: 专业综合 面试不合格
A155: 调剂 | B155: 085655 | C155: 材料与化工 | D155: 王沁玥 | E155: 106155085600615 | F155: 283 | G155: 95 | H155: 32 | I155: 52 | J155: 179.0 | K155: 251.80 | M155: 否 | N155: 专业综合 面试不合格
A156: 调剂 | B156: 085656 | C156: 材料与化工 | D156: 肖雨 | E156: 104255540006702 | F156: 298 | G156: 72 | H156: 24 | I156: 46 | J156: 142.0 | K156: 251.20 | M156: 否 | N156: 专业综合 面试不合格
A157: 调剂 | B157: 085657 | C157: 材料与化工 | D157: 黄雨豪 | E157: 102885500011717 | F157: 290 | G157: 90 | H157: 30 | I157: 40 | J157: 160.0 | K157: 251.00 | M157: 否 | N157: 专业综合 面试不合格
A158: 调剂 | B158: 085658 | C158: 材料与化工 | D158: 陈清 | E158: 103575210013857 | F158: 283 | G158: 90 | H158: 30 | I158: 56 | J158: 176.0 | K158: 250.90 | M158: 否 | N158: 专业综合 面试不合格
A159: 调剂 | B159: 085659 | C159: 材料与化工 | D159: 芈坤坤 | E159: 104035085600166 | F159: 274 | G159: 100 | H159: 40 | I159: 55 | J159: 195.0 | K159: 250.30 | M159: 否 | N159: 专业综合 面试不合格
A160: 调剂 | B160: 085660 | C160: 材料与化工 | D160: 王玲爽 | E160: 104235141111591 | F160: 263 | G160: 120 | H160: 45 | I160: 55 | J160: 220.0 | K160: 250.10 | M160: 否 | N160: 专业综合 面试不合格
A161: 调剂 | B161: 085662 | C161: 材料与化工 | D161: 倪玮 | E161: 102915210301105 | F161: 295 | G161: 80 | H161: 24 | I161: 40 | J161: 144.0 | K161: 249.70 | M161: 否 | N161: 专业综合 面试不合格
A162: 调剂 | B162: 085663 | C162: 材料与化工 | D162: 洪洁 | E162: 102925210100095 | F162: 285 | G162: 90 | H162: 28 | I162: 49 | J162: 167.0 | K162: 249.60 | M162: 否 | N162: 专业综合 面试不合格
A163: 调剂 | B163: 085664 | C163: 材料与化工 | D163: 何知胜 | E163: 104035085600460 | F163: 295 | G163: 78 | H163: 25 | I163: 40 | J163: 143.0 | K163: 249.40 | M163: 否 | N163: 专业综合 面试不合格
A164: 调剂 | B164: 085665 | C164: 材料与化工 | D164: 罗时铃 | E164: 102935210609144 | F164: 269 | G164: 112 | H164: 40 | I164: 50 | J164: 202.0 | K164: 248.90 | M164: 否 | N164: 专业综合 面试不合格
A165: 调剂 | B165: 085666 | C165: 材料与化工 | D165: 李格 | E165: 103575210013788 | F165: 281 | G165: 90 | H165: 32 | I165: 52 | J165: 174.0 | K165: 248.90 | M165: 否 | N165: 专业综合 面试不合格
A166: 调剂 | B166: 085667 | C166: 材料与化工 | D166: 张佳敏 | E166: 102915210301230 | F166: 295 | G166: 60 | H166: 30 | I166: 50 | J166: 140.0 | K166: 248.50 | M166: 否 | N166: 专业综合 面试不合格
A167: 调剂 | B167: 085668 | C167: 材料与化工 | D167: 付晓鹍 | E167: 104255540004886 | F167: 284 | G167: 70 | H167: 40 | I167: 55 | J167: 165.0 | K167: 248.30 | M167: 否 | N167: 专业综合 面试不合格
A168: 调剂 | B168: 085669 | C168: 材料与化工 | D168: 刘宗昊 | E168: 105905678913152 | F168: 286 | G168: 90 | H168: 30 | I168: 40 | J168: 160.0 | K168: 248.20 | M168: 否 | N168: 专业综合 面试不合格
A169: 调剂 | B169: 085670 | C169: 材料与化工 | D169: 郭佳思 | E169: 102515000004810 | F169: 267 | G169: 119.4 | H169: 39.6 | I169: 45 | J169: 204.0 | K169: 248.10 | M169: 否 | N169: 专业综合 面试不合格
A170: 调剂 | B170: 085671 | C170: 材料与化工 | D170: 鲍雅婷 | E170: 102855210001089 | F170: 278 | G170: 90 | H170: 32 | I170: 55 | J170: 177.0 | K170: 247.70 | M170: 否 | N170: 专业综合 面试不合格
A171: 调剂 | B171: 085672 | C171: 材料与化工 | D171: 王飞虎 | E171: 102805250006804 | F171: 275 | G171: 95 | H171: 30 | I171: 55 | J171: 180.0 | K171: 246.50 | M171: 否 | N171: 专业综合 面试不合格
A172: 调剂 | B172: 085673 | C172: 材料与化工 | D172: 刘子辰 | E172: 103575210005764 | F172: 277 | G172: 95 | H172: 30 | I172: 50 | J172: 175.0 | K172: 246.40 | M172: 否 | N172: 专业综合 面试不合格
A173: 调剂 | B173: 085674 | C173: 材料与化工 | D173: 郭航宇 | E173: 106995410418057 | F173: 275 | G173: 92 | H173: 35 | I173: 52 | J173: 179.0 | K173: 246.20 | M173: 否 | N173: 专业综合 面试不合格
A174: 调剂 | B174: 085675 | C174: 材料与化工 | D174: 胡建建 | E174: 104975400337461 | F174: 280 | G174: 80 | H174: 35 | I174: 50 | J174: 165.0 | K174: 245.50 | M174: 否 | N174: 专业综合 面试不合格
A175: 调剂 | B175: 085676 | C175: 材料与化工 | D175: 谢才东 | E175: 102885100002021 | F175: 269 | G175: 105 | H175: 30 | I175: 55 | J175: 190.0 | K175: 245.30 | M175: 否 | N175: 专业综合 面试不合格
A176: 调剂 | B176: 085677 | C176: 材料与化工 | D176: 唐捷轩 | E176: 104975400349404 | F176: 273 | G176: 100 | H176: 30 | I176: 50 | J176: 180.0 | K176: 245.10 | M176: 否 | N176: 专业综合 面试不合格
A177: 调剂 | B177: 085678 | C177: 材料与化工 | D177: 彭晓剑 | E177: 103375210013746 | F177: 279 | G177: 76 | H177: 32 | I177: 55 | J177: 163.0 | K177: 244.20 | M177: 否 | N177: 专业综合 面试不合格
A178: 调剂 | B178: 085679 | C178: 材料与化工 | D178: 徐城 | E178: 106135085600670 | F178: 276 | G178: 80 | H178: 35 | I178: 55 | J178: 170.0 | K178: 244.20 | M178: 否 | N178: 专业综合 面试不合格
A179: 调剂 | B179: 085680 | C179: 材料与化工 | D179: 张祥瑞 | E179: 100085210003786 | F179: 271 | G179: 90 | H179: 35 | I179: 55 | J179: 180.0 | K179: 243.70 | M179: 否 | N179: 专业综合 面试不合格
A180: 调剂 | B180: 085681 | C180: 材料与化工 | D180: 孙浩楠 | E180: 103595210009640 | F180: 292 | G180: 50 | H180: 25 | I180: 55 | J180: 130.0 | K180: 243.40 | M180: 否 | N180: 专业综合 面试不合格
A181: 调剂 | B181: 085682 | C181: 材料与化工 | D181: 彭玮 | E181: 102915210403588 | F181: 304 | G181: 30 | H181: 20 | I181: 50 | J181: 100.0 | K181: 242.80 | M181: 否 | N181: 专业综合 面试不合格
A182: 调剂 | B182: 085683 | C182: 材料与化工 | D182: 牛林武 | E182: 105305418007287 | F182: 260 | G182: 100 | H182: 45 | I182: 55 | J182: 200.0 | K182: 242.00 | M182: 否 | N182: 专业综合 面试不合格
A183: 调剂 | B183: 085684 | C183: 材料与化工 | D183: 杨颖哲夫 | E183: 102555250003936 | F183: 277 | G183: 80 | H183: 30 | I183: 50 | J183: 160.0 | K183: 241.90 | M183: 否 | N183: 专业综合 面试不合格
A184: 调剂 | B184: 085685 | C184: 材料与化工 | D184: 白海蕊 | E184: 107105141305987 | F184: 277 | G184: 80 | H184: 30 | I184: 50 | J184: 160.0 | K184: 241.90 | M184: 否 | N184: 专业综合 面试不合格
A185: 调剂 | B185: 085686 | C185: 材料与化工 | D185: 管至豪 | E185: 102515000005455 | F185: 270 | G185: 95 | H185: 30 | I185: 50 | J185: 175.0 | K185: 241.50 | M185: 否 | N185: 专业综合 面试不合格
A186: 调剂 | B186: 085687 | C186: 材料与化工 | D186: 骆铖 | E186: 102875210606880 | F186: 272 | G186: 90 | H186: 30 | I186: 50 | J186: 170.0 | K186: 241.40 | M186: 否 | N186: 专业综合 面试不合格
A187: 调剂 | B187: 085688 | C187: 材料与化工 | D187: 肖飞 | E187: 104035085600488 | F187: 271 | G187: 80 | H187: 35 | I187: 55 | J187: 170.0 | K187: 240.70 | M187: 否 | N187: 专业综合 面试不合格
A188: 调剂 | B188: 085689 | C188: 材料与化工 | D188: 张天宇 | E188: 102905211808759 | F188: 263 | G188: 100 | H188: 30 | I188: 58 | J188: 188.0 | K188: 240.50 | M188: 否 | N188: 专业综合 面试不合格
A189: 调剂 | B189: 085690 | C189: 材料与化工 | D189: 乔诗莹 | E189: 102845213425891 | F189: 267 | G189: 80 | H189: 40 | I189: 58 | J189: 178.0 | K189: 240.30 | M189: 否 | N189: 专业综合 面试不合格
A190: 调剂 | B190: 085691 | C190: 材料与化工 | D190: 李平 | E190: 103575210005760 | F190: 282 | G190: 70 | H190: 30 | I190: 40 | J190: 140.0 | K190: 239.40 | M190: 否 | N190: 专业综合 面试不合格
A191: 调剂 | B191: 085692 | C191: 材料与化工 | D191: 丛锦然 | E191: 102805250005813 | F191: 266 | G191: 95 | H191: 32 | I191: 50 | J191: 177.0 | K191: 239.30 | M191: 否 | N191: 专业综合 面试不合格
A192: 调剂 | B192: 085693 | C192: 材料与化工 | D192: 李硕 | E192: 104595410930075 | F192: 270 | G192: 90 | H192: 30 | I192: 45 | J192: 165.0 | K192: 238.50 | M192: 否 | N192: 专业综合 面试不合格
A193: 调剂 | B193: 085694 | C193: 材料与化工 | D193: 赵高高 | E193: 104975400337707 | F193: 300 | G193: 20 | H193: 25 | I193: 50 | J193: 95.0 | K193: 238.50 | M193: 否 | N193: 专业综合 面试不合格
A194: 调剂 | B194: 085695 | C194: 材料与化工 | D194: 曾庆豪 | E194: 104975400350901 | F194: 267 | G194: 95 | H194: 30 | I194: 45 | J194: 170.0 | K194: 237.90 | M194: 否 | N194: 专业综合 面试不合格
A195: 调剂 | B195: 085696 | C195: 材料与化工 | D195: 刘一豪 | E195: 103585210012451 | F195: 264 | G195: 90 | H195: 30 | I195: 50 | J195: 170.0 | K195: 235.80 | M195: 否 | N195: 专业综合 面试不合格
A196: 调剂 | B196: 085697 | C196: 材料与化工 | D196: 万伟玉 | E196: 100055411610707 | F196: 267 | G196: 79 | H196: 32 | I196: 48 | J196: 159.0 | K196: 234.60 | M196: 否 | N196: 专业综合 面试不合格
A197: 调剂 | B197: 085698 | C197: 材料与化工 | D197: 沈子杰 | E197: 102555250002964 | F197: 262 | G197: 80 | H197: 40 | I197: 50 | J197: 170.0 | K197: 234.40 | M197: 否 | N197: 专业综合 面试不合格
A198: 调剂 | B198: 085699 | C198: 材料与化工 | D198: 惠斌 | E198: 100085210006233 | F198: 267 | G198: 60 | H198: 35 | I198: 55 | J198: 150.0 | K198: 231.90 | M198: 否 | N198: 专业综合 面试不合格
A199: 调剂 | B199: 085700 | C199: 材料与化工 | D199: 韩佳瑶 | E199: 102915210301542 | F199: 261 | G199: 90 | H199: 30 | I199: 40 | J199: 160.0 | K199: 230.70 | M199: 否 | N199: 专业综合 面试不合格
A200: 调剂 | B200: 085701 | C200: 材料与化工 | D200: 兰余鑫 | E200: 104035085600657 | F200: 280 | G200: 20 | H200: 30 | I200: 50 | J200: 100.0 | K200: 226.00 | M200: 否 | N200: 专业综合 面试不合格
... 1 more rows

Sheet 学硕
A1: 江苏科技大学 材料科学与工程 学院 2025年硕士研究生复试录取排序表
A2: 学院（章）： 材料科学与工程 专业代码及专业名称：080500 材料科学与工程
A3: 生源类别（一志愿或调剂） | B3: 复试专业 代码 | C3: 复试专业 名称 | D3: 姓名 | E3: 考生编号 | F3: A 初试总成绩（含加分） | G3: B 专业课考试（考核）成绩 | H3: C 口语听力总成绩 | I3: D 专业知识面试成绩 | J3: （B+C+D+E) 复试总成绩 （保留至小数点后1位） | K3: 综合成绩 （保留至小数点后2位小数） 综合成绩=初试成绩*70%+复试总成绩*30% | L3: 综合成绩排名 | M3: 是否拟录取 | N3: 备注
A4: 调剂 | B4: 080500 | C4: 材料科学与工程 | D4: 周飞鸿 | E4: 101455000011502 | F4: 327 | G4: 120.3 | H4: 40.5 | I4: 78.8 | J4: =ROUND(SUM(G4:I4),1) -> 239.6 | K4: =ROUND(F4*0.7+J4*0.3,2) -> 300.78 | L4: 1 | M4: 是
A5: 调剂 | B5: 080500 | C5: 材料科学与工程 | D5: 赵誉 | E5: 102875210607224 | F5: 324 | G5: 90 | H5: 45 | I5: 85 | J5: =G5+H5+I5 -> 220.0 | K5: =F5*0.7+J5*0.3 -> 292.80 | L5: 2 | M5: 是
A6: 调剂 | B6: 080500 | C6: 材料科学与工程 | D6: 孙宇呈 | E6: 104595410930326 | F6: 325 | G6: 121.25 | H6: 35 | I6: 60 | J6: =SUM(G6:I6) -> 216.3 | K6: =F6*0.7+J6*0.3 -> 292.38 | L6: 3 | M6: 是
A7: 调剂 | B7: 080500 | C7: 材料科学与工程 | D7: 兰慧鸿 | E7: 103595210004744 | F7: 301 | G7: 138 | H7: 45 | I7: 87 | J7: =ROUND(SUM(G7:I7),1) -> 270.0 | K7: =ROUND(F7*0.7+J7*0.3,2) -> 291.70 | L7: 4 | M7: 是
A8: 调剂 | B8: 080500 | C8: 材料科学与工程 | D8: 钟若曦 | E8: 102885500010854 | F8: 306 | G8: 130 | H8: 40 | I8: 85 | J8: =SUM(G8:I8) -> 255.0 | K8: =F8*0.7+J8*0.3 -> 290.70 | L8: 5 | M8: 是
A9: 调剂 | B9: 080500 | C9: 材料科学与工程 | D9: 杨迪 | E9: 106355319024901 | F9: 308 | G9: 118.75 | H9: 35 | I9: 80 | J9: =SUM(G9:I9) -> 233.8 | K9: =F9*0.7+J9*0.3 -> 285.73 | L9: 6 | M9: 是
A10: 调剂 | B10: 080500 | C10: 材料科学与工程 | D10: 陈慧琳 | E10: 104035085600071 | F10: 293 | G10: 135.1 | H10: 45.2 | I10: 85.5 | J10: =ROUND(SUM(G10:I10),1) -> 265.8 | K10: =ROUND(F10*0.7+J10*0.3,2) -> 284.84 | L10: 7 | M10: 是
A11: 调剂 | B11: 080500 | C11: 材料科学与工程 | D11: 殷明杰 | E11: 104035080500200 | F11: 292 | G11: 136 | H11: 42 | I11: 90 | J11: =ROUND(SUM(G11:I11),1) -> 268.0 | K11: =ROUND(F11*0.7+J11*0.3,2) -> 284.80 | L11: 8 | M11: 是
A12: 调剂 | B12: 080500 | C12: 材料科学与工程 | D12: 史佳欣 | E12: 102515000004550 | F12: 291 | G12: 133 | H12: 39 | I12: 94 | J12: =ROUND(SUM(G12:I12),1) -> 266.0 | K12: =ROUND(F12*0.7+J12*0.3,2) -> 283.50 | L12: 9 | M12: 是
A13: 调剂 | B13: 080500 | C13: 材料科学与工程 | D13: 张凡阳 | E13: 102875210604443 | F13: 289 | G13: 136 | H13: 45 | I13: 89 | J13: =ROUND(SUM(G13:I13),1) -> 270.0 | K13: =ROUND(F13*0.7+J13*0.3,2) -> 283.30 | L13: 10 | M13: 是
A14: 调剂 | B14: 080500 | C14: 材料科学与工程 | D14: 林芷民 | E14: 102555250006922 | F14: 292 | G14: 138 | H14: 40 | I14: 83 | J14: =ROUND(SUM(G14:I14),1) -> 261.0 | K14: =ROUND(F14*0.7+J14*0.3,2) -> 282.70 | L14: 11 | M14: 是
A15: 调剂 | B15: 080500 | C15: 材料科学与工程 | D15: 张睿 | E15: 827055000000008 | F15: 289 | G15: 126.25 | H15: 40 | I15: 85 | J15: =SUM(G15:I15) -> 251.3 | K15: =F15*0.7+J15*0.3 -> 277.68 | L15: 12 | M15: 是
A16: 调剂 | B16: 080500 | C16: 材料科学与工程 | D16: 赵阳 | E16: 102875210607223 | F16: 319 | G16: 80 | H16: 40 | I16: 60 | J16: =G16+H16+I16 -> 180.0 | K16: =F16*0.7+J16*0.3 -> 277.30 | L16: 13 | M16: 是
A17: 调剂 | B17: 080500 | C17: 材料科学与工程 | D17: 吴军 | E17: 102515000008341 | F17: 301 | G17: 110 | H17: 35 | I17: 75 | J17: =SUM(G17:I17) -> 220.0 | K17: =F17*0.7+J17*0.3 -> 276.70 | L17: 14 | M17: 是
A18: 调剂 | B18: 080500 | C18: 材料科学与工程 | D18: 刘宇峰 | E18: 100055440812072 | F18: 295 | G18: 110 | H18: 40 | I18: 80 | J18: =SUM(G18:I18) -> 230.0 | K18: =F18*0.7+J18*0.3 -> 275.50 | L18: 15 | M18: 是
A19: 调剂 | B19: 080500 | C19: 材料科学与工程 | D19: 杨柳 | E19: 103595210004517 | F19: 279 | G19: 130 | H19: 45 | I19: 92 | J19: =SUM(G19:I19) -> 267.0 | K19: =SUM(0.7*F19+0.3*J19) -> 275.40 | L19: 16 | M19: 是
A20: 调剂 | B20: 080500 | C20: 材料科学与工程 | D20: 陈缘 | E20: 106355319024799 | F20: 286 | G20: 125.4 | H20: 40.6 | I20: 80.2 | J20: =ROUND(SUM(G20:I20),1) -> 246.2 | K20: =ROUND(F20*0.7+J20*0.3,2) -> 274.06 | L20: 17 | M20: 是
A21: 调剂 | B21: 080500 | C21: 材料科学与工程 | D21: 潘秋夷 | E21: 106995321916364 | F21: 279 | G21: 131 | H21: 42 | I21: 88 | J21: =ROUND(SUM(G21:I21),1) -> 261.0 | K21: =ROUND(F21*0.7+J21*0.3,2) -> 273.60 | L21: 18 | M21: 是
A22: 调剂 | B22: 080500 | C22: 材料科学与工程 | D22: 方品笑 | E22: 102875210607207 | F22: 293 | G22: 100 | H22: 48 | I22: 80 | J22: =G22+H22+I22 -> 228.0 | K22: =F22*0.7+J22*0.3 -> 273.50 | L22: 19 | M22: 是
A23: 调剂 | B23: 080500 | C23: 材料科学与工程 | D23: 王莹 | E23: 102855210011705 | F23: 275 | G23: 140 | H23: 45 | I23: 85 | J23: =ROUND(SUM(G23:I23),1) -> 270.0 | K23: =ROUND(F23*0.7+J23*0.3,2) -> 273.50 | L23: 20 | M23: 是
A24: 调剂 | B24: 080500 | C24: 材料科学与工程 | D24: 李国超 | E24: 106115000900237 | F24: 285 | G24: 122.5 | H24: 38 | I24: 85 | J24: =SUM(G24:I24) -> 245.5 | K24: =F24*0.7+J24*0.3 -> 273.15 | L24: 21 | M24: 是
A25: 调剂 | B25: 080500 | C25: 材料科学与工程 | D25: 陈丽娟 | E25: 102875210611568 | F25: 281 | G25: 132 | H25: 41 | I25: 81 | J25: =ROUND(SUM(G25:I25),1) -> 254.0 | K25: =ROUND(F25*0.7+J25*0.3,2) -> 272.90 | L25: 22 | M25: 是
A26: 调剂 | B26: 080500 | C26: 材料科学与工程 | D26: 陈铭淳 | E26: 105335432706231 | F26: 281 | G26: 130 | H26: 40 | I26: 83 | J26: =ROUND(SUM(G26:I26),1) -> 253.0 | K26: =ROUND(F26*0.7+J26*0.3,2) -> 272.60 | L26: 23 | M26: 是
A27: 调剂 | B27: 080500 | C27: 材料科学与工程 | D27: 鞠恒冬 | E27: 102865414817156 | F27: 280 | G27: 117 | H27: 48 | I27: 90 | J27: =G27+H27+I27 -> 255.0 | K27: =F27*0.7+J27*0.3 -> 272.50 | L27: 24 | M27: 是
A28: 调剂 | B28: 080500 | C28: 材料科学与工程 | D28: 戴雨廷 | E28: 102855210010220 | F28: 303 | G28: 75 | H28: 45 | I28: 80 | J28: =G28+H28+I28 -> 200.0 | K28: =F28*0.7+J28*0.3 -> 272.10 | L28: 25 | M28: 是
A29: 调剂 | B29: 080500 | C29: 材料科学与工程 | D29: 许馨丹 | E29: 102865321408228 | F29: 276 | G29: 132.5 | H29: 40 | I29: 90 | J29: =SUM(G29:I29) -> 262.5 | K29: =F29*0.7+J29*0.3 -> 271.95 | L29: 26 | M29: 是
A30: 调剂 | B30: 080500 | C30: 材料科学与工程 | D30: 杨扬 | E30: 106135080500053 | F30: 271 | G30: 130 | H30: 45 | I30: 95 | J30: =G30+H30+I30 -> 270.0 | K30: =F30*0.7+J30*0.3 -> 270.70 | L30: 27 | M30: 是
A31: 调剂 | B31: 080500 | C31: 材料科学与工程 | D31: 王宇晨 | E31: 102805250005695 | F31: 301 | G31: 90 | H31: 40 | I31: 70 | J31: =G31+H31+I31 -> 200.0 | K31: =F31*0.7+J31*0.3 -> 270.70 | L31: 28 | M31: 是
A32: 调剂 | B32: 080500 | C32: 材料科学与工程 | D32: 杜昊 | E32: 102855210009525 | F32: 268 | G32: 138 | H32: 45 | I32: 93 | J32: =SUM(G32:I32) -> 276.0 | K32: =SUM(0.7*F32+0.3*J32) -> 270.40 | L32: 29 | M32: 是
A33: 调剂 | B33: 080500 | C33: 材料科学与工程 | D33: 孙桐 | E33: 102875210605499 | F33: 271 | G33: 130 | H33: 48 | I33: 90 | J33: =G33+H33+I33 -> 268.0 | K33: =F33*0.7+J33*0.3 -> 270.10 | L33: 30 | M33: 是
A34: 调剂 | B34: 080500 | C34: 材料科学与工程 | D34: 付衡 | E34: 102875210606622 | F34: 272 | G34: 136 | H34: 44 | I34: 85 | J34: =ROUND(SUM(G34:I34),1) -> 265.0 | K34: =ROUND(F34*0.7+J34*0.3,2) -> 269.90 | L34: 31 | M34: 是
A35: 调剂 | B35: 080500 | C35: 材料科学与工程 | D35: 黄旭 | E35: 102855210018801 | F35: 274 | G35: 128.3 | H35: 40 | I35: 88 | J35: =SUM(G35:I35) -> 256.3 | K35: =F35*0.7+J35*0.3 -> 268.69 | L35: 32 | M35: 是
A36: 调剂 | B36: 080500 | C36: 材料科学与工程 | D36: 李汝林 | E36: 105325210308876 | F36: 276 | G36: 121.4 | H36: 40 | I36: 88 | J36: =SUM(G36:I36) -> 249.4 | K36: =F36*0.7+J36*0.3 -> 268.02 | L36: 33 | M36: 是
A37: 调剂 | B37: 080500 | C37: 材料科学与工程 | D37: 蒋昊彬 | E37: 102555250003599 | F37: 270 | G37: 128 | H37: 40 | I37: 94 | J37: =SUM(G37:I37) -> 262.0 | K37: =SUM(0.7*F37+0.3*J37) -> 267.60 | L37: 34 | M37: 是
A38: 调剂 | B38: 080500 | C38: 材料科学与工程 | D38: 柯言 | E38: 102555250002469 | F38: 282 | G38: 118.75 | H38: 40 | I38: 75 | J38: =SUM(G38:I38) -> 233.8 | K38: =F38*0.7+J38*0.3 -> 267.53 | L38: 35 | M38: 是
A39: 调剂 | B39: 080500 | C39: 材料科学与工程 | D39: 赵鑫宇 | E39: 103585210004006 | F39: 278 | G39: 120.3 | H39: 45.4 | I39: 75.5 | J39: =ROUND(SUM(G39:I39),1) -> 241.2 | K39: =ROUND(F39*0.7+J39*0.3,2) -> 266.96 | L39: 36 | M39: 是
A40: 调剂 | B40: 080500 | C40: 材料科学与工程 | D40: 任敏文 | E40: 105335142413210 | F40: 262 | G40: 141.5 | H40: 46.7 | I40: 86.4 | J40: 274.6 | K40: 265.78 | L40: 37 | M40: 是
A41: 调剂 | B41: 080500 | C41: 材料科学与工程 | D41: 郑州 | E41: 102855210011704 | F41: 260 | G41: 140 | H41: 45 | I41: 91 | J41: 276.0 | K41: 264.80 | L41: 38 | M41: 是
A42: 调剂 | B42: 080500 | C42: 材料科学与工程 | D42: 陈东俊 | E42: 105595210001331 | F42: 283 | G42: 115.4 | H42: 40.6 | I42: 65.6 | J42: 221.6 | K42: 264.58 | L42: 39 | M42: 是
A43: 调剂 | B43: 080500 | C43: 材料科学与工程 | D43: 董磊 | E43: 100805180106328 | F43: 261 | G43: 139 | H43: 45 | I43: 88 | J43: 272.0 | K43: 264.30 | L43: 40 | M43: 是
A44: 调剂 | B44: 080500 | C44: 材料科学与工程 | D44: 熊凤 | E44: 106135080500041 | F44: 260 | G44: 137 | H44: 47 | I44: 90 | J44: 274.0 | K44: 264.20 | L44: 41 | M44: 是
A45: 调剂 | B45: 080500 | C45: 材料科学与工程 | D45: 万佳辉 | E45: 102935210605885 | F45: 284 | G45: 116 | H45: 30 | I45: 71 | J45: 217.0 | K45: 263.90 | L45: 42 | M45: 是
A46: 调剂 | B46: 080500 | C46: 材料科学与工程 | D46: 柳傲然 | E46: 104975400342552 | F46: 296 | G46: 91.2 | H46: 35 | I46: 59 | J46: =SUM(G46:I46) -> 185.2 | K46: =SUM(0.7*F46+0.3*J46) -> 262.76 | L46: 43 | M46: 否 | N46: 专业综合 面试不合格
A47: 调剂 | B47: 080500 | C47: 材料科学与工程 | D47: 杨星 | E47: 102135000009204 | F47: 309 | G47: 71.6 | H47: 30 | I47: 52 | J47: =SUM(G47:I47) -> 153.6 | K47: =F47*0.7+J47*0.3 -> 262.38 | L47: 44 | M47: 否 | N47: 专业综合 面试不合格
A48: 调剂 | B48: 080500 | C48: 材料科学与工程 | D48: 陈佳鑫 | E48: 104975400343689 | F48: 298 | G48: 93.75 | H48: 33 | I48: 50 | J48: =SUM(G48:I48) -> 176.8 | K48: =F48*0.7+J48*0.3 -> 261.63 | L48: 45 | M48: 否 | N48: 专业综合 面试不合格
A49: 调剂 | B49: 080500 | C49: 材料科学与工程 | D49: 陈鑫 | E49: 102885500006675 | F49: 286 | G49: 110 | H49: 38 | I49: 56 | J49: =G49+H49+I49 -> 204.0 | K49: =F49*0.7+J49*0.3 -> 261.40 | L49: 46 | M49: 否 | N49: 专业综合 面试不合格
A50: 调剂 | B50: 080500 | C50: 材料科学与工程 | D50: 曾红伟 | E50: 102885500012071 | F50: 295 | G50: 100.75 | H50: 30 | I50: 49 | J50: =SUM(G50:I50) -> 179.8 | K50: =F50*0.7+J50*0.3 -> 260.43 | L50: 47 | M50: 否 | N50: 专业综合 面试不合格
A51: 调剂 | B51: 080500 | C51: 材料科学与工程 | D51: 王一凡 | E51: 102555250002917 | F51: 279 | G51: 120 | H51: 40 | I51: 55 | J51: =G51+H51+I51 -> 215.0 | K51: =F51*0.7+J51*0.3 -> 259.80 | L51: 48 | M51: 否 | N51: 专业综合 面试不合格
A52: 调剂 | B52: 080500 | C52: 材料科学与工程 | D52: 黄书飞 | E52: 104035085600050 | F52: 284 | G52: 115.6 | H52: 40.5 | I52: 40.6 | J52: =ROUND(SUM(G52:I52),1) -> 196.7 | K52: =ROUND(F52*0.7+J52*0.3,2) -> 257.81 | L52: 49 | M52: 否 | N52: 专业综合 面试不合格
A53: 调剂 | B53: 080500 | C53: 材料科学与工程 | D53: 尹洋洋 | E53: 102905211802425 | F53: 285 | G53: 110.2 | H53: 35.6 | I53: 45.4 | J53: =ROUND(SUM(G53:I53),1) -> 191.2 | K53: =ROUND(F53*0.7+J53*0.3,2) -> 256.86 | L53: 50 | M53: 否 | N53: 专业综合 面试不合格
A54: 调剂 | B54: 080500 | C54: 材料科学与工程 | D54: 闫培娟 | E54: 107105411310234 | F54: 289 | G54: 90 | H54: 35 | I54: 56 | J54: =SUM(G54:I54) -> 181.0 | K54: =F54*0.7+J54*0.3 -> 256.60 | L54: 51 | M54: 否 | N54: 专业综合 面试不合格
A55: 调剂 | B55: 080500 | C55: 材料科学与工程 | D55: 刘瑞 | E55: 100055230307194 | F55: 267 | G55: 130 | H55: 41 | I55: 59 | J55: =ROUND(SUM(G55:I55),1) -> 230.0 | K55: =ROUND(F55*0.7+J55*0.3,2) -> 255.90 | L55: 52 | M55: 否 | N55: 专业综合 面试不合格
A56: 调剂 | B56: 080500 | C56: 材料科学与工程 | D56: 王可欣 | E56: 101835214310554 | F56: 294 | G56: 95.3 | H56: 40.3 | I56: 30.3 | J56: =ROUND(SUM(G56:I56),1) -> 165.9 | K56: =ROUND(F56*0.7+J56*0.3,2) -> 255.57 | L56: 53 | M56: 否 | N56: 专业综合 面试不合格
A57: 调剂 | B57: 080500 | C57: 材料科学与工程 | D57: 杨栋 | E57: 102855210011958 | F57: 288 | G57: 94.2 | H57: 40.4 | I57: 43.6 | J57: =ROUND(SUM(G57:I57),1) -> 178.2 | K57: =ROUND(F57*0.7+J57*0.3,2) -> 255.06 | L57: 54 | M57: 否 | N57: 专业综合 面试不合格
A58: 调剂 | B58: 080500 | C58: 材料科学与工程 | D58: 刘甜甜 | E58: 100805180106217 | F58: 270 | G58: 120.5 | H58: 40.1 | I58: 55.5 | J58: =ROUND(SUM(G58:I58),1) -> 216.1 | K58: =ROUND(F58*0.7+J58*0.3,2) -> 253.83 | L58: 55 | M58: 否 | N58: 专业综合 面试不合格
A59: 调剂 | B59: 080500 | C59: 材料科学与工程 | D59: 陈恒兵 | E59: 102875210601598 | F59: 273 | G59: 110 | H59: 40 | I59: 54 | J59: =G59+H59+I59 -> 204.0 | K59: =F59*0.7+J59*0.3 -> 252.30 | L59: 56 | M59: 否 | N59: 专业综合 面试不合格
A60: 调剂 | B60: 080500 | C60: 材料科学与工程 | D60: 徐海洛 | E60: 102865322109827 | F60: 283 | G60: 110.6 | H60: 40.6 | I60: 28.8 | J60: =ROUND(SUM(G60:I60),1) -> 180.0 | K60: =ROUND(F60*0.7+J60*0.3,2) -> 252.10 | L60: 57 | M60: 否 | N60: 专业综合 面试不合格
A61: 调剂 | B61: 080500 | C61: 材料科学与工程 | D61: 蒋豪 | E61: 103585210013797 | F61: 269 | G61: 122.5 | H61: 35 | I61: 55 | J61: =SUM(G61:I61) -> 212.5 | K61: =F61*0.7+J61*0.3 -> 252.05 | L61: 58 | M61: 否 | N61: 专业综合 面试不合格
A62: 调剂 | B62: 080500 | C62: 材料科学与工程 | D62: 罗韩 | E62: 102555250002074 | F62: 284 | G62: 75 | H62: 40 | I62: 58 | J62: =G62+H62+I62 -> 173.0 | K62: =F62*0.7+J62*0.3 -> 250.70 | L62: 59 | M62: 否 | N62: 专业综合 面试不合格
A63: 调剂 | B63: 080500 | C63: 材料科学与工程 | D63: 舒杰 | E63: 101835214319990 | F63: 270 | G63: 105 | H63: 42 | I63: 57 | J63: =ROUND(SUM(G63:I63),1) -> 204.0 | K63: =ROUND(F63*0.7+J63*0.3,2) -> 250.20 | L63: 60 | M63: 否 | N63: 专业综合 面试不合格
A64: 调剂 | B64: 080500 | C64: 材料科学与工程 | D64: 全宇鑫 | E64: 102875210608986 | F64: 270 | G64: 99 | H64: 48 | I64: 56 | J64: =G64+H64+I64 -> 203.0 | K64: =F64*0.7+J64*0.3 -> 249.90 | L64: 61 | M64: 否 | N64: 专业综合 面试不合格
A65: 调剂 | B65: 080500 | C65: 材料科学与工程 | D65: 宗博 | E65: 102905211800453 | F65: 264 | G65: 127 | H65: 35 | I65: 52 | J65: =ROUND(SUM(G65:I65),1) -> 214.0 | K65: =ROUND(F65*0.7+J65*0.3,2) -> 249.00 | L65: 62 | M65: 否 | N65: 专业综合 面试不合格
A66: 调剂 | B66: 080500 | C66: 材料科学与工程 | D66: 凌政 | E66: 104975400351155 | F66: 278 | G66: 96 | H66: 36 | I66: 48 | J66: =ROUND(SUM(G66:I66),1) -> 180.0 | K66: =ROUND(F66*0.7+J66*0.3,2) -> 248.60 | L66: 63 | M66: 否 | N66: 专业综合 面试不合格
A67: 调剂 | B67: 080500 | C67: 材料科学与工程 | D67: 邢湘雨 | E67: 100085210008285 | F67: 271 | G67: 105.7 | H67: 45.7 | I67: 42.9 | J67: =ROUND(SUM(G67:I67),1) -> 194.3 | K67: =ROUND(F67*0.7+J67*0.3,2) -> 247.99 | L67: 64 | M67: 否 | N67: 专业综合 面试不合格
A68: 调剂 | B68: 080500 | C68: 材料科学与工程 | D68: 王友田 | E68: 100055370709700 | F68: 289 | G68: 70 | H68: 25 | I68: 57 | J68: =G68+H68+I68 -> 152.0 | K68: =F68*0.7+J68*0.3 -> 247.90 | L68: 65 | M68: 否 | N68: 专业综合 面试不合格
A69: 调剂 | B69: 080500 | C69: 材料科学与工程 | D69: 张志阳 | E69: 102855210007092 | F69: 290 | G69: 60 | H69: 30 | I69: 58 | J69: =G69+H69+I69 -> 148.0 | K69: =F69*0.7+J69*0.3 -> 247.40 | L69: 66 | M69: 否 | N69: 专业综合 面试不合格
A70: 调剂 | B70: 080500 | C70: 材料科学与工程 | D70: 钱汉飞 | E70: 102875210607212 | F70: 277 | G70: 85 | H70: 32 | I70: 56 | J70: =ROUND(SUM(G70:I70),1) -> 173.0 | K70: =ROUND(F70*0.7+J70*0.3,2) -> 245.80 | L70: 67 | M70: 否 | N70: 专业综合 面试不合格
A71: 调剂 | B71: 080500 | C71: 材料科学与工程 | D71: 王睿琪 | E71: 103585210003970 | F71: 268 | G71: 88 | H71: 48 | I71: 57 | J71: =G71+H71+I71 -> 193.0 | K71: =F71*0.7+J71*0.3 -> 245.50 | L71: 68 | M71: 否 | N71: 专业综合 面试不合格
A72: 调剂 | B72: 080500 | C72: 材料科学与工程 | D72: 杨旺 | E72: 102875210607202 | F72: 273 | G72: 100 | H72: 25 | I72: 55 | J72: =G72+H72+I72 -> 180.0 | K72: =F72*0.7+J72*0.3 -> 245.10 | L72: 69 | M72: 否 | N72: 专业综合 面试不合格
A73: 调剂 | B73: 080500 | C73: 材料科学与工程 | D73: 梁思 | E73: 100805180105985 | F73: 265 | G73: 104 | H73: 35 | I73: 58 | J73: =ROUND(SUM(G73:I73),1) -> 197.0 | K73: =ROUND(F73*0.7+J73*0.3,2) -> 244.60 | L73: 70 | M73: 否 | N73: 专业综合 面试不合格
A74: 调剂 | B74: 080500 | C74: 材料科学与工程 | D74: 倪琳 | E74: 102885500005578 | F74: 270 | G74: 97.5 | H74: 36 | I74: 47 | J74: =SUM(G74:I74) -> 180.5 | K74: =F74*0.7+J74*0.3 -> 243.15 | L74: 71 | M74: 否 | N74: 专业综合 面试不合格
A75: 调剂 | B75: 080500 | C75: 材料科学与工程 | D75: 张正铭 | E75: 101455000016763 | F75: 280 | G75: 75 | H75: 25 | I75: 55 | J75: =ROUND(SUM(G75:I75),1) -> 155.0 | K75: =ROUND(F75*0.7+J75*0.3,2) -> 242.50 | L75: 72 | M75: 否 | N75: 专业综合 面试不合格
A76: 调剂 | B76: 080500 | C76: 材料科学与工程 | D76: 冯慧晶 | E76: 102555250001762 | F76: 269 | G76: 88 | H76: 32 | I76: 50 | J76: 170.0 | K76: 239.30 | L76: 73 | M76: 否 | N76: 专业综合 面试不合格
A77: 调剂 | B77: 080500 | C77: 材料科学与工程 | D77: 田华峰 | E77: 102515000005889 | F77: 266 | G77: 96 | H77: 28 | I77: 50 | J77: 174.0 | K77: 238.40 | L77: 74 | M77: 否 | N77: 专业综合 面试不合格
A78: 调剂 | B78: 080500 | C78: 材料科学与工程 | D78: 彭家伟 | E78: 102855210020449 | F78: 271 | G78: 105.4 | H78: 35.7 | I78: 20.4 | J78: 161.5 | K78: 238.15 | L78: 75 | M78: 否 | N78: 专业综合 面试不合格
A79: 调剂 | B79: 080500 | C79: 材料科学与工程 | D79: 刘华成 | E79: 107015211406261 | F79: 266 | G79: 98.3 | H79: 40.8 | I79: 30.3 | J79: 169.4 | K79: 237.02 | L79: 76 | M79: 否 | N79: 专业综合 面试不合格
A80: 调剂 | B80: 080500 | C80: 材料科学与工程 | D80: 张星灿 | E80: 103845214110184 | F80: 263 | G80: 86 | H80: 38 | I80: 50 | J80: 174.0 | K80: 236.30 | L80: 77 | M80: 否 | N80: 专业综合 面试不合格
A81: 调剂 | B81: 080500 | C81: 材料科学与工程 | D81: 张羊 | E81: 102555250002918 | F81: 263 | G81: 70 | H81: 29 | I81: 51 | J81: 150.0 | K81: 229.10 | L81: 78 | M81: 否 | N81: 专业综合 面试不合格
A82: 调剂 | B82: 080500 | C82: 材料科学与工程 | D82: 徐宏宇 | E82: 101835214304633 | F82: 328 | G82: 135.2 | H82: 45.3 | I82: 85.7 | J82: 266.2 | K82: 309.46 | L82: 79 | M82: 否 | N82: 已被其他高校录取
A83: 调剂 | B83: 080500 | C83: 材料科学与工程 | D83: 李湘 | E83: 118455002003111 | F83: 278 | G83: 105 | H83: 48 | I83: 90 | J83: =G83+H83+I83 -> 243.0 | K83: =F83*0.7+J83*0.3 -> 267.50 | L83: 80 | M83: 否 | N83: 已被其他高校录取
A84: 调剂 | B84: 080500 | C84: 材料科学与工程 | D84: 谭仁杰 | E84: 102885500013606 | F84: 306 | G84: 80 | H84: 35 | I84: 54 | J84: =SUM(G84:I84) -> 169.0 | K84: =SUM(0.7*F84+0.3*J84) -> 264.90 | L84: 82 | M84: 否 | N84: 已被其他高校录取
A85: 调剂 | B85: 080500 | C85: 材料科学与工程 | D85: 沈号 | E85: 102855210010211 | F85: 312 | G85: 50 | H85: 36 | I85: 65 | J85: =SUM(G85:I85) -> 151.0 | K85: =SUM(0.7*F85+0.3*J85) -> 263.70 | L85: 81 | M85: 否 | N85: 已被其他高校录取
A86: 调剂 | B86: 080500 | C86: 材料科学与工程 | D86: 姜雨婷 | E86: 102865422217531 | F86: 285 | G86: 75 | H86: 45 | I86: 84 | J86: =SUM(G86:I86) -> 204.0 | K86: =SUM(0.7*F86+0.3*J86) -> 260.70 | L86: 83 | M86: 否 | N86: 已被其他高校录取
